Cogmind - Beta 13 X2 @@@ ROGUE MODE // 2024.01.03 @ 20:53:21 Player: Minty Result: Destroyed by S-10 Pest with Light Assault Rifle Performance ------------- Evolutions (0) 0 Regions Visited (2) 400 Robots Destroyed (10) 50 Value Destroyed (278) 278 Prototype IDs (0) 0 Alien Tech Used (0) 0 Bonus (75) 75 TOTAL SCORE: 803 Bonus ------- Follower Combat Kills 75 Cogmind --------- Core Integrity 0/250 Matter 131/300 Energy 25/100 System Corruption 1% Temperature Cool (0) Movement Walking (120) Location -10/Mines Parts ------- > --- POWER (1) -------- (None) > --- PROPULSION (2) --- Aluminum Leg Aluminum Leg > --- UTILITY (2) ------ Heat Sink Small Storage Unit > --- WEAPON (2) ------- Small Laser > --- INVENTORY (8) ---- Aluminum Leg Hover Unit Flight Unit Large Matter Pod (0) Improved Terrain Scanner Peak State ------------ > --- POWER ------------ Ion Engine > --- PROPULSION ------- Aluminum Leg Aluminum Leg > --- UTILITY ---------- Heat Sink Small Storage Unit > --- WEAPON ----------- Assault Rifle Assault Rifle > --- INVENTORY -------- Light Ion Engine Light Treads Light Treads Wheel Compact Wheel Assault Rifle [Rating: 7] Favorites ----------- Power Ion Engine Engine Ion Engine Propulsion Aluminum Leg Leg Aluminum Leg Hover Unit Hover Unit Flight Unit Flight Unit Utility Small Storage Unit Device Heat Sink Storage Small Storage Unit Weapon Assault Rifle Energy Gun Small Laser Ballistic Gun Assault Rifle Special Weapon Mining Laser Build | -11 -10 -10 ------- Run | Yrd Mat Min Slots Evolved . | . . . Power . | . . . Propulsion . | . . . Utility . | . . . Weapon . | . . . Parts Attached 22 | . 10 12 Power 1 | . . 1 Engine 1 | . . 1 Core . | . . . Reactor . | . . . Propulsion 12 | . 7 5 Treads . | . . . Leg 6 | . 3 3 Wheel . | . . . Hover 4 | . 4 . Flight 2 | . . 2 Utility 2 | . 1 1 Device 2 | . 1 1 Storage . | . . . Processor . | . . . Hackware . | . . . Protection . | . . . Artifact . | . . . Weapon 7 | . 2 5 Energy Gun 3 | . 1 2 Energy Cannon . | . . . Ballistic Gun 1 | . 1 . Ballistic Cannon . | . . . Launcher . | . . . Special Weapon 3 | . . 3 Impact Weapon . | . . . Slashing Weapon . | . . . Piercing Weapon . | . . . Special Melee Weapon . | . . . Unidentified Prototypes . | . . . Parts Lost 12 | . 4 8 Power 2 | . . 2 Propulsion 5 | . 3 2 Utility . | . . . Weapon 5 | . 1 4 Highest Loss Streak 6 | . 3 6 To Critical Strikes . | . . . Average Slot Usage (%) 83 | . 97 71 Engine 7 | . 14 1 Leg 12 | . 10 13 Hover 7 | . 15 . Flight 5 | . . 11 Device 14 | . 14 14 Storage 14 | . 14 14 Energy Gun 6 | . 2 10 Ballistic Gun 12 | . 25 1 Special Weapon 2 | . . 5 Naked Turns . | . . . Heaviest Build 15 | 14 15 14 Greatest Support 20 | 20 20 20 Greatest Overweight (x) 2 | . 2 1 Average Overweight (x) . | . . . Largest Inventory Capacity 8 | . 8 8 Average Capacity 8 | . 8 8 Most Carried 8 | . 8 7 Average Carried 5 | . 5 5 Final Capacity 8 | 8 8 8 Final Carried 6 | 6 6 5 Class Distribution -------------------- 85% | Mutant 14% | Scavenger-Mutant Dominant Class ---------------- Mutant | -10/Materials Mutant | -10/Mines Resources | -11 -10 -10 ----------- Run | Yrd Mat Min Matter Collected 426 | 200 101 125 Remotely . | . . . Salvage Created 286 | . 190 96 Parts 20 | . 12 8 Haulers Intercepted . | . . . Recyclers Shooed . | . . . Parts Field Recycled . | . . . Retrieved Matter . | . . . Parts Self-Destructed . | . . . Prevented . | . . . Kills | -11 -10 -10 ------- Run | Yrd Mat Min Combat Hostiles Destroyed 9 | . 5 4 Guns 8 | . 5 3 Cannons 1 | . . 1 Classes Destroyed 3 | . 1 2 Tunneler 1 | . . 1 Swarmer 2 | . . 2 Grunt 7 | . 5 2 Best Kill Streak 2 | . 2 2 Combat Bots Only 2 | . 2 2 Max Kills in Single Turn 1 | . 1 1 Gunslinging . | . . . Exploded . | . . . Melee . | . . . Uniques/NPCs Destroyed . | . . . Combat | -11 -10 -10 -------- Run | Yrd Mat Min Hostile Shots Fired 146 | . 56 90 Missed 41 | . 16 25 Damage Taken 1131 | . 441 690 Core 254 | . 33 221 Absorbed by Shields . | . . . Core Remaining (%) 100 | 100 . . Volleys Fired 55 | . 35 20 Largest 2 | . 2 2 Hottest 140 | . 60 140 Shots Fired 98 | . 70 28 Gun 94 | . 70 24 Cannon . | . . . Launcher . | . . . Special 4 | . . 4 Kinetic 74 | . 67 7 Thermal 24 | . 3 21 Explosive . | . . . Electromagnetic . | . . . Robot Hit Streak 11 | . 6 11 Robot Miss Streak 3 | . 3 2 Penetration Max . | . . . Secondary Targets 2 | . 2 . Max Gunslinging Chain 1 | . 1 . Shots Hit Robots 59 | . 40 19 Core Hits 19 | . 13 6 Critical Kills . | . . . Critical Parts Destroyed . | . . . Critical Strikes . | . . . Melee Attacks . | . . . Impact . | . . . Slashing . | . . . Piercing . | . . . Sneak Attacks . | . . . Combat Hostiles . | . . . Follow-up Attacks . | . . . Damage Inflicted 729 | . 481 248 Guns 679 | . 479 200 Cannons . | . . . Explosions . | . . . Melee . | . . . Ramming 2 | . 2 . Kinetic 559 | . 468 91 Thermal 168 | . 11 157 Explosive . | . . . Electromagnetic . | . . . Impact . | . . . Slashing . | . . . Piercing . | . . . Highest Corruption 1 | . 1 1 Average Corruption 1 | . 1 1 Corruption Purged . | . . . Corruption Blocked . | . . . Effects 4 | . . 4 Matter Fused 2 | . . 2 Parts Rejected 2 | . . 2 Overload Shots . | . . . Overflow Damage . | . . . Projectiles . | . . . Explosions . | . . . Melee . | . . . Knockbacks . | . . . Impact . | . . . Kinetic . | . . . Secondary . | . . . Self-Inflicted Damage . | . . . Shots . | . . . Rammed . | . . . Targets Rammed 1 | . 1 . Kicked 1 | . 1 . Crushed . | . . . Highest Temperature 5 | . . 5 Average Temperature 5 | . . 5 Received Heat Transfer 471 | . 240 231 Siege Activations . | . . . Robots Corrupted . | . . . Combat Hostiles . | . . . Parts Fried . | . . . Impact Corruptions . | . . . Robots Melted . | . . . Combat Hostiles . | . . . Parts Melted . | . . . Heat Transferred 375 | . 25 350 Parts Sabotaged . | . . . Parts Stolen . | . . . Parts Stripped . | . . . Power Chain Reactions . | . . . Missiles Intercepted . | . . . Alert | -11 -10 -10 ------- Run | Yrd Mat Min Peak Influence 148 | . 148 147 Initial 57 | . . 57 Average 85 | . 71 98 Maximum Alert Level . | . . . Low Security (%) 100 | . 100 100 Level 1 . | . . . Level 2 . | . . . Level 3 . | . . . Level 4 . | . . . Level 5 . | . . . High Security . | . . . Max Security . | . . . Squads Dispatched 3 | . 2 1 Investigation 2 | . 1 1 Extermination . | . . . Reinforcement 1 | . 1 . Assault . | . . . Garrison . | . . . Intercept . | . . . Searches Triggered . | . . . Construction Impeded . | . . . Haulers Reinforced . | . . . Active Scanning Responses . | . . . Cargo Convoy Interrupts . | . . . Stealth | -11 -10 -10 --------- Run | Yrd Mat Min Distress Signals . | . . . Communications Jammed . | . . . Distress Signals . | . . . Times Spotted 25 | . 11 14 Peak Tracking Total 5 | . 4 5 Tactical Retreats 3 | . 2 1 Traps | -11 -10 -10 ------- Run | Yrd Mat Min Traps Triggered 1 | . 1 . Indirectly . | . . . Trap Hack Attempts . | . . . Triggered . | . . . Disarmed . | . . . Reprogrammed . | . . . Reused . | . . . Traps Extracted . | . . . Installed . | . . . Triggered . | . . . Machines | -11 -10 -10 ---------- Run | Yrd Mat Min Machines Disabled . | . . . Max in Single Turn . | . . . Machines Repaired . | . . . Machines Dismantled . | . . . Machines Sabotaged . | . . . Overloaded Fab Kills . | . . . Hacking | -11 -10 -10 --------- Run | Yrd Mat Min Machines Accessed 3 | . 2 1 Terminals 3 | . 2 1 Fabricators . | . . . Repair Stations . | . . . Recycling Units . | . . . Scanalyzers . | . . . Garrison Access . | . . . Total Hacks 12 | . 10 2 Successful 6 | . 4 2 Failed 6 | . 6 . Catastrophic 1 | . 1 . Database Lockouts . | . . . Manual 10 | . 8 2 Terminals 12 | . 10 2 Fabricators . | . . . Repair Stations . | . . . Recycling Units . | . . . Scanalyzers . | . . . Garrison Access . | . . . Terminal Hacks 3 | . 2 1 Branch Access Points 1 | . 1 . Terminal Index 1 | . 1 . Zone Layout 1 | . . 1 Fabricator Hacks . | . . . Repair Station Hacks . | . . . Recycling Unit Hacks . | . . . Scanalyzer . | . . . Garrison Access Hacks . | . . . Unauthorized Hacks 3 | . 2 1 Terminals 3 | . 2 1 Botnet 2 | . 2 . Search 1 | . . 1 Fabricators . | . . . Repair Stations . | . . . Recycling Units . | . . . Scanalyzers . | . . . Garrison Access . | . . . Data Cores Recovered . | . . . Used . | . . . Hacking Detections 2 | . 2 . Full Trace Events 1 | . 1 . Feedback Events . | . . . Feedback Blocked . | . . . Robot Schematics Acquired . | . . . Robots Built . | . . . Authchips . | . . . Time . | . . . Total Robot Build Rating . | . . . Part Schematics Acquired . | . . . Parts Built . | . . . Authchips . | . . . Time . | . . . Total Part Build Rating . | . . . Parts Repaired . | . . . Time . | . . . Parts Recycled . | . . . Recycled Matter . | . . . Retrieved Matter . | . . . Retrieved Components . | . . . Parts Scanalyzed . | . . . Part Schematics Acquired . | . . . Parts Damaged . | . . . Bothacking | -11 -10 -10 ------------ Run | Yrd Mat Min Used RIF Installer . | . . . Robots Hacked . | . . . Non-combat . | . . . Combat . | . . . Robot Hacks Applied . | . . . Relay Couplers Released . | . . . Fabnet Peak Effective % . | . . . Robots Rewired . | . . . Allies Hacked . | . . . Hacks Repelled . | . . . Allies | -11 -10 -10 -------- Run | Yrd Mat Min Total Allies 3 | . . 3 Largest Group 3 | . . 3 Highest-Rated Group 40 | . . 40 Highest-Rated Ally 16 | . . 16 Total Orders . | . . . Ally Attacks 23 | . . 23 Total Damage 255 | . . 255 Kills 3 | . . 3 Allies Corrupted . | . . . Allies Melted . | . . . Intel | -11 -10 -10 ------- Run | Yrd Mat Min Robot Analysis Total . | . . . Derelict Logs Recovered 2 | . . 2 Drone Launches . | . . . Drone Recoveries . | . . . Exploration | -11 -10 -10 ------------- Run | Yrd Mat Min Turns Passed 469 | . 221 248 Spaces Moved 359 | 1 75 283 Core . | . . . Treads . | . . . Legs 108 | 1 43 64 Wheels . | . . . Hover 32 | . 32 . Flight 219 | . . 219 Fastest Speed 37 | 120 116 37 Average Speed 72 | 120 121 59 Slowest Speed 190 | 120 190 120 Overloaded Moves . | . . . Propulsion Burnouts . | . . . Robots Hopped 4 | . . 4 Cave-ins Triggered . | . . . Exploration Rate (%) 26 | 2 18 60 Regions Visited 2 Branch Regions 1 Pre-discovered Areas 1 | . . 1 Known Exits Taken 1 | . 1 . Unknown Exits Taken 1 | 1 . . Scrap Searched 1 | . . 1 Spaces Dug . | . . . Terrain Destroyed 1 | . . 1 Melee . | . . . Projectile 1 | . . 1 AOE . | . . . Terrain Rammed . | . . . Walls Destroyed . | . . . Machines Disabled . | . . . Actions | -11 -10 -10 --------- Run | Yrd Mat Min Total 457 | . 136 321 Wait 6 | . . 6 Move 349 | . 74 275 Hop 4 | . . 4 Pick Up 7 | . 5 2 Fast Attach 11 | . 6 5 Attach 8 | . 3 5 Detach 6 | . 4 2 Swap 3 | . 1 2 Drop 7 | . 7 . Fire 55 | . 35 20 Melee . | . . . Ram . | . . . Kick 1 | . 1 . Crush . | . . . Escape Stasis . | . . . Rewire . | . . . Trap . | . . . Miscellaneous . | . . . Route ------- -11/Scrapyard -10/Materials -10/Mines (discovered 1 exit: [*Mat]) History --------- Turn | Location | Event 1 | -11/Scrapyard | Discovered new exit (range 0) 1 | -11/Scrapyard | Entered Materials 179 | -10/Materials | Identified exit to Mines 185 | -10/Materials | Lost 3 parts (2n1w) 222 | -10/Materials | Entered Mines 240 | -10/Mines | Core integrity fell below 50% 310 | -10/Mines | Lost 6 parts (2p1n3w) 317 | -10/Mines | Build established: Mutant 392 | -10/Mines | Core integrity fell below 20% 398 | -10/Mines | Assisted by bots powering up and referring to "LRC-V3" 400 | -10/Mines | Learned Materials security intel 415 | -10/Mines | Learned location of Zion (-7) 415 | -10/Mines | Discovered new exit (range 10) 458 | -10/Mines | Lost 3 allies 470 | -10/Mines | Destroyed by S-10 Pest with Light Assault Rifle Last Messages --------------- 00387_ Mining Laser destroyed. 00389_ Flight Unit destroyed. 00398_ Trooper 1a: "Hello LRC-V3. What is your command?" 00398_ Mercenary 1a: "Hello LRC-V3. What is your command?" 00398_ Trooper 1b: "Hello LRC-V3. What is your command?" 00400_ Acquired derelict log, extracted data. Data stored: Materials security intel. 00406_ G-34 Mercenary destroyed. 00409_ Mercenary 1a destroyed. 00410_ G-34 Mercenary destroyed. 00410_ R-06 Scavenger collects Aluminum Leg. 00415_ Acquired derelict log, extracted data. World map updated: -7/Zion. 00415_ EXIT=FOUND 00417_ G-47 Trooper suffers critical hit (Burn). 00444_ System corrupted: Matter fused (-8). 00448_ T-07 Excavator is excavating. 00466_ System corrupted: Aluminum Leg rejected. 00466_ Acquired Aluminum Leg. 00470_ S-10 Pest destroyed. Map ----- +----------------------------------------------------+ | ???????????????????????????????????? | | ???????????????????????????????????? | | ???????????????????????????????????? | | ???????????????????????????????????? | | ???????????????????????????????????? | | ???????????????????????????????????? | | ???????????????????????????????????? | | ???????????????????????????????????? | | ???????????????????????????????????? | | ##### < #?????????????????????????? | | #?????????????????????????? | | #### #?????????????????????????? | | ????????????????? ?????????????????? | | ???????????????? #????????????????? | | #####??????????# #???????????????? | | #??????????? #????###???????? | | ### #???????????? #### ##??????? | | ??# #????????????? ## #??????? | | ??# #?????????????? #??????? | | ??# #??????????????? #??????? | | ??# #???????????????# ##?????? | | ??# #???????????????# ###???? | | ??# #??????????????## ###?? | | ??# #?????????????## #?? | | ??# #####?????????# #? | | ?## ## ##????????# @ #? | | ## #????????# #? | | #???????## ## #?? | | ## #??????## ### #?????? | | ?# # ##?????## ##?###%s#?????? | | ?# ## ##???### ###?????[ #?????? | | ?# ### ##### ##??????? #?????? | | ?# #?## ##?????????s#?????? | | ?# #??## ##?????????? #?????? | | ?# ????# ###??????????? ?????? | | ?# ????## #?????????????? ?????? | | ?# ?????### #?????????????? ????? | | ?# ???????# #??????????????? ????? | | ?# ???????# #??????????????? ???? | | ?# ???????# #????????????????????? | | ? ???????# #????????????????????? | | ???????????# ##????????????????????? | | ???????????###?????????????????????? | | ???????????????????????????????????? | | ???????????????????????????????????? | | ???????????????????????????????????? | | ???????????????????????????????????? | | ???????????????????????????????????? | | ???????????????????????????????????? | | ???????????????????????????????????? | +----------------------------------------------------+ Best States ------------- Heat Dissipation 35 Energy Generation 10 Energy Capacity 250 Matter Stores 290 Matter Capacity 300 Sight Range 16 Terrain Scan Density 10 Evasion (%) 62 Item Schematics ----------------- None Robot Schematics ------------------ None Fabricated ------------ Nothing Alien Tech Used ----------------- None Achievements -------------- None Challenges ------------ None Game ------ Seed GammaIntegratedDatajack Manual? 0 Play Time 00:06:21 Cumulative 566.8 hours Start 2024.01.03 @ 20:49:06 End 2024.01.03 @ 20:53:21 Sessions 1 Manual Loads 0 Difficulty Rogue Special Mode None Game No. 453 Rogue 181 Adventurer 122 Explorer 150 Win Type - Total 25 Types 19/0/4/1/0/0/0/1/0 Lore% 77 Gallery% 90 Achievement% 75 Wizard Run 0 Options --------- ASCII 0 Keyboard 1 Movement Numpad Keybinds 0 Fullscreen 2 Font 18/X11Bold Map View 76x50 Zoom Use 0% Tactical HUD 1 Map Filters NONE Filters NONE Steam 1 RUN: fb6c043f-83a1-4708-90fc-eb7509affa7d